bitfinex-derivatives/quotes_SOLF0:USTF0_20250227
["timestamp","ask_amount","ask_price","bid_price","bid_amount"]
[1740663010593,13.8789822,140.5,140.23,22.88622833]
[1740663010796,0.05078625,140.44,140.41,0.04849921]
[1740663010992,7.1281,140.42,140.25,21.46]
[1740663011197,34.92075088,140.49,140.25,21.46]
[1740663011489,7.1283,140.41,140.26,7.1358]
[1740663011690,7.1283,140.41,140.24,1.42612664]
[1740663011891,33.85687535,140.48,140.24,1.42612664]
[1740663012094,0.04499636,140.34,140.31,0.05343096]
[1740663012289,21.4,140.46,140.24,17.00520621]
[1740663012485,1.06342964,140.45,140.24,17.00520621]
[1740663012689,0.0533998,140.34,140.31,0.04673966]
[1740663013092,1.0626092,140.47,140.24,17.00520621]
[1740663013291,0.04832506,140.34,140.31,0.04563033]
[1740663013492,1.0626092,140.47,140.24,17.00520621]
[1740663013692,16.08652572,140.5,140.24,17.00520621]
[1740663013693,2.997e-05,140.34,140.33,7.1323]
[1740663013996,1.0626092,140.49,140.25,42.86]
[1740663014194,14.66303818,140.52,140.41,7.128]
[1740663014393,116.57251396,140.55,140.37,193.86]
[1740663015293,0.05463459,140.46,140.44,7.17751135]
[1740663015491,0.05463459,140.46,140.44,0.05131135]
[1740663015691,14.84947408,140.46,140.37,193.86]
[1740663015992,14.90357372,140.46,140.44,0.05015724]
[1740663016389,26.34787662,140.47,140.38,1.3093245]
[1740663016591,4.877e-05,140.46,140.44,0.04991979]
[1740663016793,4.877e-05,140.46,140.38,1.3093245]
[1740663016989,192.62696158,140.5,140.39,21.46]
[1740663017194,192.62696158,140.5,140.4,45.59382592]
[1740663017395,192.62696158,140.5,140.49,7.1242]
[1740663017591,192.62696158,140.5,140.4,65.64450142]
[1740663017796,181.82246158,140.5,140.41,1.30871164]
[1740663018097,21.3138,140.88,140.4,65.64450142]
[1740663018098,193.82,140.87,140.44,21.51379198]
[1740663018297,193.82,140.87,140.46,21.46]
[1740663018500,244.76853456,140.7,140.48,21.46]
[1740663018794,244.76853456,140.7,140.5,21.46]
[1740663018996,244.76853456,140.7,140.58,7.1191]
[1740663019199,244.76853456,140.7,140.55,193.74]
[1740663019896,0.04674445,140.65,140.63,0.0540208]
[1740663020403,244.76853456,140.7,140.63,0.0540208]
[1740663020599,0.04570286,140.65,140.63,0.0540208]
[1740663021201,21.4,140.97,140.63,0.0540208]
[1740663021202,106.55785945,140.93,140.68,7.1144]
[1740663021399,106.55785945,140.93,140.63,0.0540208]
[1740663021595,7.1039,140.9,140.74,7.1115]
[1740663021795,0.04730653,140.82,140.64,1.42207053]
[1740663021998,0.04730653,140.82,140.7,193.64]
[1740663022197,72.75281946,141.11,140.81,0.05299983]
[1740663022596,72.75281946,141.11,140.82,1.4202528]
[1740663023206,72.75281946,141.11,140.83,1.30504606]
[1740663023396,72.75281946,141.11,140.84,1.42005112]
[1740663023601,0.04613533,140.98,140.95,0.04618975]
[1740663024001,0.04613533,140.98,140.84,1.42005112]
[1740663024201,7.0979,141.01,140.85,7.1057]
[1740663024600,72.75281946,141.11,140.84,1.42005112]
[1740663025303,7.0999,140.97,140.96,36.99187351]
[1740663025503,21.28,140.97,140.84,1.42005112]
[1740663025704,193.46,141.14,140.84,1.42005112]
[1740663026004,1.41713313,141.13,140.67,21.46]
[1740663026205,1.41713313,141.13,140.71,1.30544723]
[1740663026404,1.41713313,141.13,140.87,9.53285159]
[1740663026903,0.05084416,140.93,140.91,0.04536153]
[1740663027205,0.05084416,140.93,140.87,9.53285159]
[1740663027406,1.41713313,141.13,140.87,9.53285159]
[1740663027605,7.0977,141.02,140.87,9.53285159]
[1740663027806,1.41713313,141.13,140.87,9.53285159]
[1740663028002,22.81713313,141.13,140.87,9.53285159]
[1740663028205,22.81713313,141.13,140.82,9.53285159]
[1740663028705,0.05101604,141.01,140.99,0.05306918]
[1740663029004,0.05101604,141.01,140.82,9.53285159]
[1740663029208,0.05101604,141.01,140.99,0.04981066]
[1740663029407,21.28,141.01,140.82,9.53285159]
[1740663029707,21.4,141.08,140.82,9.53285159]
[1740663029908,21.4,141.08,140.81,9.53285159]
[1740663030208,1.41713313,141.13,140.81,10.95320525]
[1740663030711,0.04568105,140.98,140.96,0.04469217]
[1740663031309,22.81713313,141.13,140.81,10.95320525]
[1740663031607,22.81713313,141.13,140.96,0.04526706]
[1740663031608,0.0520173,140.98,140.96,0.04526706]
[1740663032008,22.81713313,141.13,140.83,9.53285159]
[1740663032410,0.04885466,140.98,140.96,0.05360531]
[1740663032912,22.81713313,141.13,140.83,9.53285159]
[1740663033110,0.05404635,140.98,140.96,0.04873003]
[1740663033514,21.4,141.07,140.82,9.53285159]
[1740663033711,7.0959,141.06,140.82,9.53285159]
[1740663034012,22.81713313,141.13,140.82,9.53285159]
[1740663034013,0.05423569,140.98,140.96,0.04828713]
[1740663034211,0.05423569,140.98,140.82,9.53285159]
[1740663034407,22.81713313,141.13,140.82,9.53285159]
[1740663034908,7.0988,141.0,140.82,9.53285159]
[1740663035411,0.04716786,140.92,140.9,0.0494564]
[1740663035610,0.04716786,140.92,140.82,9.53285159]
[1740663035808,44.27713313,141.13,140.82,9.53285159]
[1740663036006,1.0667428,141.12,140.81,1.42035366]
[1740663036202,7.1004,140.96,140.74,38.13140638]
[1740663036513,44.27713313,141.13,140.75,1.30582715]
[1740663036514,22.81713313,141.13,140.75,1.30582715]
[1740663036709,1.06642261,141.12,140.75,1.30582715]
[1740663037100,0.04801771,140.95,140.93,0.05408896]
[1740663037302,0.04801771,140.95,140.75,1.30582715]
[1740663037502,21.4,141.08,140.75,1.30582715]
[1740663037809,2.48415848,141.07,140.76,16.28035335]
[1740663038011,2.48425899,141.06,140.76,16.28035335]
[1740663038209,21.4,140.96,140.76,16.28035335]
[1740663038604,0.04640754,140.92,140.9,0.05061117]
[1740663038806,7.1033,140.91,140.76,16.28035335]
[1740663039208,21.4,140.97,140.76,16.28035335]
[1740663040111,0.05036399,140.88,140.85,0.05417643]
[1740663040310,0.05036399,140.88,140.76,16.28035335]
[1740663040311,0.05036399,140.88,140.76,7.20615335]
[1740663040509,21.4,140.87,140.61,21.46]
[1740663040808,21.4,140.87,140.62,1.30731825]
[1740663041014,7.1076,140.82,140.62,1.30731825]
[1740663041313,21.4,140.87,140.61,21.46]
[1740663041517,0.04542953,140.73,140.71,0.04557732]
[1740663041711,1.06671542,140.94,140.71,0.04557732]
[1740663041911,7.1064,140.85,140.62,1.30729002]
[1740663042109,21.4,140.95,140.63,1.42217165]
[1740663042306,1.41904356,140.94,140.64,1.30729002]
[1740663042710,1.06686028,140.93,140.63,1.42217165]
[1740663043008,7.109,140.79,140.78,0.05330644]
[1740663043212,0.04768938,140.8,140.61,193.22]
[1740663043412,21.4,140.83,140.6,29.05720638]
[1740663043612,21.4,140.83,140.56,53.69364594]
[1740663044208,1.4202528,140.82,140.56,53.69364594]
[1740663044408,0.04686443,140.71,140.68,0.04792406]
[1740663044613,0.04686443,140.71,140.56,0.5797285]
[1740663044813,1.4202528,140.82,140.56,0.5797285]
[1740663045013,1.06632677,140.81,140.56,0.5797285]
[1740663045214,22.8202528,140.82,140.56,0.5797285]
[1740663045813,0.05416116,140.7,140.68,0.03732225]
[1740663046413,7.1101,140.77,140.66,7.1155]
[1740663046715,0.05120493,140.7,140.68,0.03732225]
[1740663047011,7.1099,140.78,140.68,0.03732225]
[1740663047205,7.1099,140.78,140.58,1.30731507]
[1740663047406,193.28,140.84,140.59,2.72989135]
[1740663047615,7.1085,140.8,140.69,7.1139]
[1740663047808,193.28,140.84,140.6,1.4224751]
[1740663048013,193.28,140.84,140.61,1.30707007]
[1740663048206,0.05313504,140.76,140.73,0.0455369]
[1740663048711,193.28,140.84,140.62,1.30709761]
[1740663048911,193.28,140.84,140.61,1.30709761]
[1740663049111,7.1118,140.74,140.73,0.05214568]
[1740663049318,0.0478334,140.76,140.61,1.30741211]
[1740663049515,193.28,140.84,140.61,1.30741211]
[1740663049710,7.1099,140.78,140.61,1.30741211]
[1740663049916,106.58802974,140.87,140.62,2.7296849]
[1740663050119,106.58802974,140.87,140.63,24.18958376]
[1740663050312,7.1081,140.81,140.71,7.1125]
[1740663050513,106.58802974,140.87,140.74,0.03638149]
[1740663050717,0.04984476,140.76,140.74,0.03638149]
[1740663050918,106.58802974,140.87,140.65,1.30674689]
[1740663051118,106.58802974,140.87,140.67,21.46]
[1740663051318,106.58802974,140.87,140.74,0.03638149]
[1740663051518,193.34,140.95,140.74,0.03638149]
[1740663051717,193.34,140.95,140.68,1.30674689]
[1740663051718,21.4,140.93,140.68,1.30674689]
[1740663051917,7.1087,140.8,140.69,1.30663373]
[1740663052120,35.605,140.92,140.67,1.30663373]
[1740663052519,14.205,140.92,140.67,1.30663373]
[1740663052720,0.05091108,140.81,140.78,0.04802859]
[1740663053014,7.15931108,140.81,140.78,0.04802859]
[1740663053220,14.205,140.92,140.67,1.30663373]
[1740663053516,0.04686061,140.81,140.78,0.05354853]
[1740663053718,0.04686061,140.81,140.67,1.30666421]
[1740663053921,14.208,140.89,140.67,1.30666421]
[1740663054216,21.4,140.92,140.66,1.42186833]
[1740663054419,14.2091,140.88,140.72,28.59855479]
[1740663055014,0.04756607,140.81,140.79,1.423e-05]
[1740663055219,7.1085,140.8,140.79,1.423e-05]
[1740663055423,64.0108,140.94,140.72,28.59855479]
[1740663055723,1.0662261,140.93,140.72,28.59855479]
[1740663055929,14.1976,141.0,140.73,1.30628468]
[1740663056224,14.1976,141.0,140.8,7.1083]
[1740663056426,0.0450158,140.84,140.72,28.59855479]
[1740663056619,14.1976,141.0,140.73,1.30627831]
[1740663056818,7.1031,140.91,140.69,21.46]
[1740663057018,14.1976,141.0,140.74,1.30610173]
[1740663057220,14.1976,141.0,140.7,2.72756583]
[1740663057419,7.1036,140.9,140.75,1.30610173]
[1740663057723,14.1976,141.0,140.76,1.30610173]
[1740663057921,193.32,141.05,140.72,35.6849]
[1740663058224,0.05138557,140.88,140.86,0.05206854]
[1740663058423,7.1021,140.93,140.85,7.1056]
[1740663058619,0.05220811,140.88,140.86,0.04551338]
[1740663058823,7.1021,140.93,140.86,0.04551338]
[1740663059029,0.05348132,140.88,140.86,0.04551338]
[1740663059227,7.1019,140.93,140.86,0.04551338]
[1740663059420,0.05354231,140.88,140.86,0.04551338]
[1740663059615,214.72,141.05,140.79,28.59855479]
[1740663059817,0.04729366,140.88,140.8,1.35202849]
[1740663060025,214.72,141.05,140.8,1.30579325]
[1740663060226,214.72,141.05,140.83,0.05234507]
[1740663060426,214.72,141.05,140.8,1.30579325]
[1740663060727,214.72,141.05,140.81,1.30579325]
[1740663061021,127.92076692,140.98,140.79,28.59855479]
[1740663061226,0.05283193,140.91,140.88,0.04822261]
[1740663061427,0.05283193,140.91,140.79,28.59855479]
[1740663061625,127.92076692,140.98,140.8,1.30585703]
[1740663061826,127.92076692,140.98,140.79,28.59855479]
[1740663062329,129.33940786,140.98,140.79,28.59855479]
[1740663062522,21.4,140.94,140.79,28.59855479]
[1740663062719,0.05326255,140.9,140.79,16.21923104]
[1740663063122,21.4,140.94,140.79,10.49513104]
[1740663063323,7.1085,140.8,140.79,16.80504941]
[1740663063524,7.1085,140.8,140.79,5.71284941]
[1740663063726,28.4085,140.8,140.79,4.941e-05]
[1740663064124,21.3,140.8,140.79,4.941e-05]
[1740663065528,0.04613677,140.81,140.79,4.941e-05]
[1740663066223,0.04613677,140.81,140.8,7.1085]
[1740663066632,193.26,140.91,140.79,4.941e-05]
[1740663066833,193.26,140.91,140.82,7.1073]
[1740663067532,214.66,140.91,140.65,14.2316]
[1740663067728,0.05178332,140.88,140.66,1.30692341]
[1740663067923,7.1073,140.83,140.75,7.1107]
[1740663068128,214.66,140.91,140.75,7.1107]
[1740663068429,7.1106,140.76,140.7,7.1134]
[1740663068627,21.4,140.89,140.64,4.941e-05]
[1740663068829,1.41964792,140.88,140.64,4.941e-05]
[1740663069030,0.04925052,140.78,140.66,7.1154]
[1740663069226,0.04925052,140.78,140.64,4.941e-05]
[1740663069425,1.41964792,140.88,140.69,76.26281277]
[1740663069426,21.4,140.85,140.69,76.26281277]
[1740663069627,0.05273427,140.72,140.69,76.26281277]
[1740663069828,1.42005112,140.84,140.69,76.26281277]
[1740663070028,7.1135,140.7,140.69,64.41991277]
[1740663070429,28.4335,140.7,140.69,10.92359837]
[1740663070732,21.32,140.7,140.68,114.39421916]
[1740663070926,21.32,140.7,140.68,71.75421916]
[1740663071232,21.4,140.69,140.66,251.14604031]
[1740663071624,28.515,140.68,140.66,251.14604031]
[1740663072125,28.515,140.67,140.66,197.77084031]
[1740663072325,28.515,140.67,140.66,133.22244031]
[1740663072527,21.32,140.67,140.66,79.82354031]
[1740663072720,21.32,140.67,140.36,193.34]
[1740663072721,0.05442897,140.68,140.58,7.1196]
[1740663072925,0.05442897,140.68,140.59,35.54]
[1740663073121,106.7300513,140.69,140.6,42.65]
[1740663073326,0.05288763,140.65,140.63,7.117]
[1740663073629,0.45728397,140.76,140.64,35.54]
[1740663073829,0.45728397,140.76,140.65,35.54]
[1740663074029,0.45728397,140.76,140.65,42.65]
[1740663074230,0.04786145,140.72,140.51,24.07845819]
[1740663074429,0.04786145,140.72,140.64,7.11]
[1740663074629,0.45728397,140.76,140.66,35.54]
[1740663074834,0.04858523,140.69,140.66,35.54]
[1740663075028,0.04858523,140.69,140.51,24.07845819]
[1740663075235,234.65203881,140.68,140.66,7.1151]
[1740663075433,234.69753595,140.68,140.62,35.54]
[1740663075729,234.65203881,140.68,140.62,7.1172]
[1740663076131,0.04612095,140.66,140.49,291.9589592]
[1740663076429,234.65203881,140.68,140.57,42.65]
[1740663076934,0.05221694,140.59,140.49,291.9589592]
[1740663077135,234.65203881,140.68,140.58,42.65]
[1740663077330,234.65203881,140.68,140.62,7.1172]
[1740663077531,15.34187852,140.57,140.47,56.41876509]
[1740663077730,7.852e-05,140.57,140.47,188.25430624]
[1740663077932,7.852e-05,140.57,140.56,42.65]
[1740663078231,11.56822124,140.59,140.56,42.65]
[1740663078436,33.71033532,140.6,140.58,42.65]
[1740663078734,27.56313532,140.6,140.59,42.65]
[1740663078933,27.61492562,140.6,140.59,42.65]
[1740663079137,27.61492562,140.6,140.59,230.90430624]
[1740663079530,194.00985681,140.69,140.59,42.65]
[1740663079729,194.00985681,140.69,140.65,42.65]
[1740663079927,194.00985681,140.69,140.66,42.65]
[1740663080134,194.00985681,140.69,140.67,42.65]
[1740663080334,194.00985681,140.69,140.66,42.65]
[1740663080735,194.06219483,140.69,140.67,42.65]
[1740663080931,194.06219483,140.69,140.66,0.05257961]
[1740663081438,194.06219483,140.69,140.51,193.5]
[1740663081741,194.00985681,140.69,140.62,42.65]
[1740663082033,194.00985681,140.69,140.63,42.65]
[1740663082236,194.00985681,140.69,140.62,42.65]
[1740663082633,0.04512799,140.67,140.51,193.5]
[1740663082838,0.04512799,140.67,140.59,42.65]
[1740663083039,194.00985681,140.69,140.6,42.65]
[1740663083244,21.4,140.77,140.61,42.65]
[1740663083439,0.05143701,140.66,140.61,35.54]
[1740663083645,0.05143701,140.66,140.42,193.5]
[1740663083646,7.1146,140.68,140.54,7.1214]
[1740663083940,0.05019856,140.65,140.6,35.54]
[1740663084138,0.05019856,140.65,140.54,7.1214]
[1740663084139,7.16629856,140.65,140.57,35.54]
[1740663084545,21.4,140.68,140.42,193.5]
[1740663084743,0.04538083,140.62,140.56,42.65]
[1740663084936,0.04538083,140.62,140.42,381.75430624]
[1740663084937,7.1164,140.65,140.57,42.65]
[1740663085142,0.04791658,140.6,140.57,42.65]
[1740663085341,0.04791658,140.6,140.57,7.11]
[1740663085538,154.17120687,140.64,140.59,42.65]
[1740663085740,0.04645291,140.6,140.59,42.65]
[1740663085939,154.17120687,140.64,140.43,21.33]
[1740663086136,154.17120687,140.64,140.44,1.30862325]
[1740663086340,0.05220585,140.61,140.53,7.1218]
[1740663086542,193.49760834,140.62,140.44,1.42409569]
[1740663086741,0.04688974,140.58,140.44,189.67840193]
[1740663086942,193.49760834,140.62,140.44,189.67840193]
[1740663087240,0.04769539,140.52,140.44,189.67840193]
[1740663087448,0.04769539,140.52,140.47,7.1249]
[1740663087742,0.04769539,140.52,140.44,189.67840193]
[1740663087743,0.04769539,140.52,140.44,188.25430624]
[1740663088545,0.04769539,140.52,140.36,35.5915]
[1740663088949,21.57671041,140.62,140.38,189.06462969]
[1740663089149,0.0477927,140.46,140.38,189.06462969]
[1740663089449,21.4,140.61,140.38,189.06462969]
[1740663089652,0.04802242,140.43,140.38,188.25430624]
[1740663089850,1.0657802,140.6,140.38,188.25430624]
[1740663090047,7.1235,140.51,140.39,7.1291]
[1740663090253,0.0468566,140.42,140.38,188.25430624]
[1740663090453,1.42257628,140.59,140.38,188.25430624]
[1740663090654,0.04859421,140.46,140.38,188.25430624]
[1740663090851,1.42257628,140.59,140.33,193.54]
[1740663091052,1.42257628,140.59,140.36,7.1307]
[1740663091053,0.05389003,140.43,140.36,7.1307]
[1740663091256,115.69691353,140.53,140.36,7.1307]
[1740663091553,0.04611376,140.41,140.36,195.38500624]
[1740663091749,137.09691353,140.53,140.36,188.25430624]
[1740663091954,0.04953242,140.4,140.36,188.25430624]
[1740663092145,115.69691353,140.53,140.36,188.25430624]
[1740663092649,0.04820502,140.39,140.36,188.25430624]
[1740663092850,7.1247,140.48,140.37,7.1302]
[1740663093046,0.05009174,140.39,140.36,188.25430624]
[1740663093250,115.69691353,140.53,140.36,21.38]
[1740663093459,115.69691353,140.53,140.22,193.62]
[1740663093753,115.69691353,140.52,140.25,35.6021]
[1740663094056,115.69691353,140.52,140.26,1.42592328]
[1740663094255,115.69691353,140.52,140.28,42.73]
[1740663094653,115.69691353,140.52,140.39,0.05139235]
[1740663094854,115.69691353,140.52,140.47,7.1251]
[1740663095254,115.69691353,140.52,140.32,21.33]
[1740663095657,115.69691353,140.52,140.33,1.425212]
[1740663095851,137.09691353,140.6,140.33,1.425212]
[1740663096051,0.05180826,140.43,140.41,0.04551833]
[1740663096255,115.69691353,140.6,140.35,1.30958921]
[1740663096458,137.09691353,140.6,140.41,0.04900735]
[1740663096660,1.06570575,140.59,140.37,1.30958921]
[1740663096959,1.06570575,140.59,140.38,1.30958921]
[1740663097161,1.06570575,140.59,140.41,7.1279]
[1740663097361,1.06570575,140.59,140.33,211.00944719]
[1740663097562,0.05469307,140.5,140.47,0.05252398]
[1740663098062,0.04809113,140.5,140.47,0.05328029]
[1740663098758,115.69691353,140.54,140.47,0.05328029]
[1740663099757,120.98837781,140.55,140.47,0.05328029]
[1740663099959,120.98837781,140.55,140.54,7.1216]
[1740663100255,0.0522511,140.52,140.48,1.30856896]
[1740663100462,120.98837781,140.55,140.53,0.04755179]
[1740663100660,308.3767719,140.58,140.43,1.3087868]
[1740663100661,0.04844941,140.51,140.43,1.3087868]
[1740663100860,77.27922821,140.58,140.44,1.30883672]
[1740663101061,77.27922821,140.58,140.45,1.30884433]
[1740663101263,77.27922821,140.58,140.46,1.30884433]
[1740663101463,71.33422821,140.58,140.47,1.30884433]
[1740663101663,60.07672821,140.58,140.57,7.1201]
[1740663101852,47.78622821,140.58,140.57,7.1201]
[1740663102056,47.78622821,140.58,140.57,28.4601]
[1740663102057,47.74322821,140.58,140.57,28.4601]
[1740663102265,24.99312821,140.58,140.57,28.4601]
[1740663102466,24.99312821,140.58,140.57,7.1201]
[1740663102664,0.04642837,140.59,140.56,0.05335159]
[1740663104260,0.04642837,140.59,140.56,21.39335159]
[1740663104461,0.04642837,140.59,140.56,0.05335159]
[1740663106765,7.1201,140.57,140.56,0.05335159]
[1740663106972,0.04642837,140.59,140.47,1.30879822]
[1740663107166,7.122,140.54,140.46,9.72604546]
[1740663107560,21.4,140.64,140.46,9.72604546]
[1740663108270,7.1211,140.55,140.54,1.342e-05]
[1740663108662,21.34,140.55,140.46,9.72604546]
[1740663108860,193.62,140.61,140.46,9.72604546]
[1740663109068,21.4,140.6,140.46,9.72604546]
[1740663109266,21.4,140.6,140.37,16.85614546]
[1740663109467,0.04580568,140.54,140.38,1.30968488]
[1740663109673,1.06542465,140.59,140.38,1.30968488]
[1740663109973,1.06542465,140.59,140.37,9.72604546]
[1740663110770,0.04701826,140.49,140.47,0.04923338]
[1740663111163,215.02,140.61,140.39,1.30951434]
[1740663111364,0.0463444,140.49,140.47,0.04525458]
[1740663111763,7.1253,140.47,140.38,8.43935016]
[1740663111966,7.1253,140.47,140.38,7.1297]
[1740663112164,7.1253,140.47,140.41,0.04964223]
[1740663112570,0.05106271,140.44,140.41,0.04964223]
[1740663112971,7.1248,140.48,140.33,22.755212]
[1740663113172,215.02,140.61,140.41,0.04937594]
[1740663113173,0.04620676,140.44,140.41,0.04937594]
[1740663113572,1.06527633,140.56,140.34,1.30997807]
[1740663113771,0.04604234,140.44,140.33,1.425212]
[1740663114069,21.4,140.54,140.33,1.425212]
[1740663114272,7.17901816,140.4,140.37,0.05318306]
[1740663114575,7.1291,140.4,140.31,1.31027698]
[1740663114775,7.1291,140.4,140.37,0.04503414]
[1740663114970,0.04770008,140.4,140.3,193.62]
[1740663115272,21.4,140.5,140.37,0.04523567]
[1740663115472,7.1301,140.38,140.37,0.04523567]
[1740663115672,0.04945753,140.36,140.3,7.1335]
[1740663115868,21.4,140.5,140.23,38.90418186]
[1740663116068,0.0493302,140.34,140.32,0.04936301]
[1740663116473,7.1318,140.34,140.26,7.1353]
[1740663116674,7.18437273,140.34,140.32,0.05406655]
[1740663116876,7.18437273,140.34,140.26,7.1353]
[1740663117074,7.18437273,140.34,140.32,0.05418653]
[1740663117473,7.18437273,140.34,140.26,7.1353]
[1740663117973,0.05257273,140.34,140.29,0.04915692]
[1740663118366,193.72,140.48,140.29,0.04915692]
[1740663118571,0.05341582,140.33,140.32,7.1323]
[1740663118769,7.1288,140.4,140.23,81.63418186]
[1740663118968,7.1288,140.4,140.37,0.05403688]
[1740663119168,0.0530935,140.33,140.25,1.31039486]
[1740663119367,7.1288,140.4,140.26,1.31033471]
[1740663119569,7.1288,140.4,140.32,7.1323]
[1740663119966,0.04881159,140.37,140.35,0.0542881]
[1740663120168,7.1288,140.4,140.26,1.31035126]
[1740663120371,0.04887645,140.37,140.35,0.0493455]
[1740663120573,215.12,140.48,140.28,1.31035126]
[1740663120773,215.12,140.48,140.31,7.1331]
[1740663120976,7.17643893,140.38,140.31,7.1331]
[1740663121176,215.12,140.48,140.38,1.661e-05]
[1740663121380,7.1329,140.32,140.26,1.31059362]
[1740663121579,7.1329,140.32,140.25,1.42602495]
[1740663121779,21.4,140.46,140.22,21.33]
[1740663122074,21.4,140.44,140.23,1.31102897]
[1740663122279,2.94372285,140.43,140.21,38.90418186]
[1740663122479,0.05072868,140.35,140.23,7.1373]
[1740663122680,36.72302285,140.42,140.21,38.90418186]
[1740663122681,35.6565,140.42,140.21,38.90418186]
[1740663122882,1.8801,140.41,140.22,22.64113642]
[1740663123077,1.8801,140.41,140.21,38.90418186]
[1740663123078,0.04872962,140.3,140.23,1.31113642]
[1740663123279,14.2576,140.4,140.22,1.31113642]
[1740663123578,7.1349,140.28,140.21,38.90418186]
[1740663123778,0.04956763,140.32,140.21,38.90418186]
[1740663124178,21.4,140.39,140.21,38.90418186]
[1740663124378,0.04942378,140.28,140.21,38.90418186]
[1740663124677,7.1348,140.29,140.21,38.90418186]
[1740663124875,0.04881252,140.26,140.21,38.90418186]
[1740663125077,21.4,140.39,140.24,7.1364]
[1740663125275,0.04961023,140.25,140.24,7.1364]
[1740663125676,14.2576,140.4,140.24,21.4]
[1740663125876,7.1327,140.33,140.15,236.45]
[1740663126081,1.8801,140.41,140.25,1.31095261]
[1740663126279,7.1325,140.33,140.19,21.33]
[1740663126483,0.05462168,140.34,140.2,1.31092418]
[1740663126686,1.8801,140.41,140.3,7.1338]
[1740663126881,1.8801,140.41,140.19,42.73]
[1740663127076,1.8801,140.41,140.22,21.33]
[1740663127280,1.8801,140.41,140.33,7.132]
[1740663127480,7.1302,140.38,140.33,7.132]
[1740663127678,0.05174864,140.38,140.22,28.468]
[1740663127882,1.8801,140.41,140.23,1.31061306]
[1740663128083,0.04813164,140.31,140.23,1.31061306]
[1740663128581,0.04813164,140.31,140.22,22.75633005]
[1740663128781,0.04813164,140.31,140.26,7.1355]
[1740663129086,0.05054553,140.28,140.22,1.42633005]
[1740663129485,0.04673412,140.26,140.22,1.42633005]
[1740663129783,7.1342,140.3,140.22,1.42633005]
[1740663129986,14.259,140.39,140.25,7.1359]
[1740663130279,14.259,140.39,140.22,1.42633005]
[1740663130485,0.04866836,140.32,140.18,21.33]
[1740663130685,21.4,140.39,140.18,21.33]
[1740663130984,0.05291266,140.26,140.22,7.1374]
[1740663131181,21.4,140.37,140.14,21.33]
[1740663131382,0.04649277,140.25,140.14,21.33]
[1740663131581,7.1383,140.22,140.17,7.1402]
[1740663131779,25.3067,140.34,140.07,1.19840196]
[1740663131981,0.04781513,140.21,140.07,1.19840196]
[1740663132180,7.1383,140.22,140.16,7.1408]
[1740663132483,0.05028322,140.19,140.16,7.1408]
[1740663132785,37.5536,140.33,140.16,7.1408]
[1740663132977,0.05025672,140.19,140.16,7.1408]
[1740663133183,16.1536,140.33,140.11,21.33]
[1740663133383,0.05271697,140.19,140.12,1.3117191]
[1740663133582,1.888,140.33,140.09,1.3117191]
[1740663133885,1.888,140.33,140.12,1.42734798]
[1740663134185,0.04606893,140.22,140.13,1.31155537]
[1740663134485,7.1364,140.25,140.2,7.1386]
[1740663134882,0.04831876,140.24,140.12,22.75734798]
[1740663135085,1.888,140.33,140.13,1.31153226]
[1740663135276,0.05037409,140.19,140.15,21.33]
[1740663135589,1.888,140.33,140.22,0.04498058]
[1740663135882,7.1349,140.28,140.18,1.31105734]
[1740663136186,7.1349,140.28,140.23,7.137]
[1740663136686,0.04707187,140.27,140.24,0.05224883]
[1740663137088,7.18247187,140.27,140.24,0.05224883]
[1740663137287,0.04707187,140.27,140.24,0.05224883]
[1740663137989,7.1358,140.26,140.24,0.05224883]
[1740663138189,0.04707187,140.27,140.24,0.05224883]
[1740663138488,0.04707187,140.27,140.26,7.1358]
[1740663138690,0.04707187,140.27,140.24,0.05224883]
[1740663138992,7.1362,140.26,140.24,0.05224883]
[1740663139189,0.04707187,140.27,140.24,0.05224883]
[1740663139987,7.1363,140.25,140.24,0.05224883]
[1740663140689,7.136,140.26,140.24,0.05224883]
[1740663141286,0.04707187,140.27,140.24,0.05224883]
[1740663141494,7.1363,140.25,140.24,0.05224883]
[1740663142486,0.04707187,140.27,140.24,21.45224883]
[1740663142691,0.04707187,140.27,140.24,0.05224883]
[1740663143088,0.04707187,140.27,140.24,7.18874883]
[1740663143891,0.04707187,140.27,140.26,7.1358]
[1740663144087,0.04707187,140.27,140.24,0.05224883]
[1740663144487,0.04707187,140.27,140.18,7.1396]
[1740663144683,0.04707187,140.27,140.16,13.58694063]